fUST/lending_fUST_20240706
["ID","MTS","AMOUNT","RATE_DAILY","PERIOD"]
[331327351,1720235441440,-503.03194375,0.00046627,120]
[331327352,1720235441449,-351.05392413,0.00046627,120]
[331327353,1720235441460,-500.0,0.00046627,120]
[331327354,1720235441470,-500.0,0.00046627,120]
[331327355,1720235441481,-500.0,0.00046627,120]
[331327356,1720235441491,-500.0,0.00046627,120]
[331327357,1720235441501,-500.0,0.00046627,120]
[331327358,1720235441514,-500.0,0.00046627,120]
[331327359,1720235441527,-502.56113794,0.00046627,120]
[331327360,1720235441537,-500.55497402,0.00046627,120]
[331327361,1720235441547,-503.12899478,0.00046627,120]
[331327362,1720235441557,-500.0,0.00046627,120]
[331327363,1720235441566,-500.0,0.00046627,120]
[331327364,1720235441576,-500.0,0.00046627,120]
[331327365,1720235441586,-500.0,0.00046627,120]
[331327366,1720235441595,-509.49118362,0.00046627,120]
[331327367,1720235441604,-500.0,0.00046627,120]
[331327368,1720235441613,-523.39333691,0.00046627,120]
[331327369,1720235441623,-501.1619338,0.00046627,120]
[331327370,1720235441633,-500.0,0.00046627,120]
[331327371,1720235441644,-572.77255449,0.00046627,120]
[331327372,1720235441653,-500.0,0.00046627,120]
[331327373,1720235441662,-500.0,0.00046627,120]
[331327374,1720235441671,-500.0,0.00046627,120]
[331327375,1720235441682,-502.53548147,0.00046627,7]
[331327376,1720235441692,-501.48488269,0.00046627,120]
[331327377,1720235441701,-500.0,0.00046627,120]
[331327378,1720235441713,-500.0,0.00046627,120]
[331327379,1720235441722,-500.0,0.00046627,120]
[331327380,1720235441731,-500.0,0.00046627,120]
[331327381,1720235441741,-501.5893816,0.00046627,120]
[331327382,1720235441750,-500.0,0.00046627,120]
[331327383,1720235441760,-500.0,0.00046627,120]
[331327384,1720235441771,-500.0,0.00046627,120]
[331327385,1720235441782,-500.0,0.00046627,120]
[331327386,1720235441793,-500.0,0.00046627,120]
[331327387,1720235441803,-501.90845996,0.00046627,120]
[331327388,1720235441813,-500.0,0.00046627,120]
[331327389,1720235441822,-503.43602753,0.00046627,120]
[331327390,1720235441832,-508.73511158,0.00046627,120]
[331327391,1720235441842,-500.0,0.00046627,120]
[331327392,1720235441852,-500.0,0.00046627,120]
[331327393,1720235441862,-500.0,0.00046627,120]
[331327394,1720235441873,-500.0,0.00046627,120]
[331327395,1720235441884,-756.75,0.00046627,120]
[331327396,1720235441895,-500.0,0.00046627,120]
[331327397,1720235441904,-500.0,0.00046627,120]
[331327398,1720235441916,-500.0,0.00046627,120]
[331327399,1720235441931,-502.05241457,0.00046627,120]
[331327400,1720235441942,-506.99784238,0.00046627,120]
[331327401,1720235441951,-500.0,0.00046627,120]
[331327402,1720235441962,-500.0,0.00046627,120]
[331327403,1720235441971,-672.28,0.00046627,120]
[331327404,1720235441981,-502.74224461,0.00046627,120]
[331327405,1720235441990,-500.50668382,0.00046627,120]
[331327406,1720235441999,-502.34866789,0.00046627,120]
[331327407,1720235442008,-500.0,0.00046627,120]
[331327408,1720235442017,-501.18628466,0.00046627,120]
[331327409,1720235442027,-501.77541142,0.00046627,120]
[331327410,1720235442036,-509.62990281,0.00046627,120]
[331327411,1720235442045,-503.88198491,0.00046627,120]
[331327412,1720235442055,-502.28582479,0.00046627,120]
[331327413,1720235442064,-503.13364162,0.00046627,120]
[331327414,1720235442073,-501.99241936,0.00046627,120]
[331327415,1720235442084,-501.36525924,0.00046627,30]
[331327416,1720235442093,-565.43161138,0.00046627,120]
[331327417,1720235442102,-500.0,0.00046627,120]
[331327418,1720235442111,-504.41574764,0.00046627,120]
[331327419,1720235442120,-501.79484719,0.00046627,120]
[331327420,1720235442131,-500.0,0.00046627,120]
[331327421,1720235442140,-500.0,0.00046627,120]
[331327422,1720235442149,-1001.56153496,0.00046627,120]
[331327423,1720235442159,-500.0,0.00046627,120]
[331327424,1720235442168,-500.0,0.00046627,120]
[331327425,1720235442178,-502.62147362,0.00046627,120]
[331327426,1720235442189,-505.91922995,0.00046627,120]
[331327427,1720235442198,-501.83980942,0.00046627,120]
[331327428,1720235442207,-502.45261409,0.00046627,120]
[331327429,1720235442217,-500.0,0.00046627,120]
[331327430,1720235442226,-501.84860553,0.00046627,120]
[331327431,1720235442237,-501.57019521,0.00046627,120]
[331327432,1720235442247,-502.63536916,0.00046627,120]
[331327433,1720235442258,-500.0,0.00046627,120]
[331327434,1720235442268,-501.86954876,0.00046627,120]
[331327435,1720235442277,-501.63305916,0.00046627,120]
[331327436,1720235442287,-500.82472071,0.00046627,120]
[331327437,1720235442305,-195.42579939,0.00046627,120]
[331327438,1720235442330,-502.11565486,0.00046627,120]
[331327439,1720235442339,-502.55642411,0.00046627,120]
[331327440,1720235442348,-500.66860635,0.00046627,120]
[331327441,1720235442358,-504.04810423,0.00046627,120]
[331327442,1720235442368,-500.0,0.00046627,120]
[331327443,1720235442377,-502.37178256,0.00046627,120]
[331327444,1720235442387,-500.0,0.00046627,120]
[331327445,1720235442396,-500.0,0.00046627,120]
[331327446,1720235442406,-500.0,0.00046627,120]
[331327447,1720235442415,-501.19122402,0.00046627,2]
[331327448,1720235442424,-500.38449014,0.00046627,120]
[331327449,1720235442433,-500.0,0.00046627,120]
[331327450,1720235442443,-505.84992118,0.00046627,120]
[331327451,1720235442452,-503.61757348,0.00046627,120]
[331327452,1720235442462,-500.0,0.00046627,120]
[331327453,1720235442471,-501.01144076,0.00046627,120]
[331327454,1720235442480,-500.0,0.00046627,120]
[331327455,1720235442490,-502.42961872,0.00046627,120]
[331327456,1720235442500,-500.0,0.00046627,120]
[331327457,1720235442509,-500.0,0.00046627,120]
[331327458,1720235442518,-500.0,0.00046627,120]
[331327459,1720235442528,-500.0,0.00046627,120]
[331327460,1720235442537,-372.66715227,0.00046627,120]
[331327461,1720235442547,-501.59045021,0.00046627,120]
[331327462,1720235442556,-500.0,0.00046627,120]
[331327463,1720235442565,-500.81237583,0.00046627,120]
[331327464,1720235442575,-500.0,0.00046627,120]
[331327465,1720235442584,-509.26194695,0.00046627,120]
[331327466,1720235442594,-500.0,0.00046627,120]
[331327467,1720235442603,-501.18749534,0.00046627,120]
[331327468,1720235442612,-502.29654849,0.00046627,120]
[331327469,1720235442623,-502.51654895,0.00046627,120]
[331327470,1720235442634,-500.82146768,0.00046627,120]
[331327471,1720235442645,-503.48956537,0.00046627,120]
[331327472,1720235442654,-501.45298817,0.00046627,120]
[331327473,1720235442664,-501.32449361,0.00046627,120]
[331327474,1720235442674,-500.0,0.00046627,120]
[331327475,1720235442683,-500.0,0.00046627,120]
[331327476,1720235442692,-500.0,0.00046627,120]
[331327477,1720235442702,-501.61407002,0.00046627,120]
[331327478,1720235442712,-501.58262161,0.00046627,120]
[331327479,1720235442723,-500.60007697,0.00046627,120]
[331327480,1720235442732,-502.02663637,0.00046627,120]
[331327481,1720235442741,-500.0,0.00046627,120]
[331327482,1720235442751,-500.0,0.00046627,120]
[331327483,1720235442760,-500.0,0.00046627,120]
[331327484,1720235442769,-502.10208647,0.00046627,120]
[331327485,1720235442779,-506.00473758,0.00046627,120]
[331327486,1720235442788,-503.66318536,0.00046627,120]
[331327487,1720235442797,-501.49158823,0.00046627,120]
[331327488,1720235442807,-160.46491895,0.00046627,120]
[331327489,1720235442816,-500.5055612,0.00046627,120]
[331327490,1720235442826,-503.19397751,0.00046627,120]
[331327491,1720235442835,-502.63827144,0.00046627,120]
[331327492,1720235442844,-502.15914318,0.00046627,120]
[331327493,1720235442854,-1072.46,0.00046627,120]
[331327494,1720235442863,-503.1657776,0.00046627,120]
[331327495,1720235442872,-500.0,0.00046627,120]
[331327496,1720235442883,-1562.94,0.00046881,3]
[331327497,1720235442893,-2230.38,0.00046881,3]
[331327498,1720235442903,-1858.65,0.00046881,3]
[331327499,1720235442920,-1548.88,0.00046881,3]
[331327500,1720235442931,-164.1961937,0.0004689,31]
[331327501,1720235442974,-362.22765402,0.0004689,120]
[331327502,1720235443029,-252.35104302,0.0004689,120]
[331327503,1720235443051,-500.0,0.0004689,7]
[331327504,1720235443073,-500.0,0.0004689,7]
[331327505,1720235443140,-500.0,0.0004689,7]
[331327506,1720235443150,-500.0,0.0004689,7]
[331327507,1720235443159,-46629.52866231,0.00046891,61]
[331327508,1720235443169,-72122.0399429,0.00046891,5]
[331327509,1720235443178,-1000.0,0.00046891,30]
[331327510,1720235443187,-500.0,0.000469,120]
[331327511,1720235443196,-24906.05,0.000469,120]
[331327512,1720235443206,-2474.64,0.000469,21]
[331327513,1720235443215,-4221.44,0.000469,120]
[331327514,1720235443224,-500.0,0.000469,120]
[331327515,1720235443234,-1310.77,0.000469,120]
[331327516,1720235443243,-500.0,0.000469,120]
[331327517,1720235443252,-3362.43,0.000469,120]
[331327518,1720235443262,-613.04579308,0.00046901,120]
[331327519,1720235443272,-500.0,0.00046901,120]
[331327520,1720235443281,-503.50410111,0.00046901,120]
[331327521,1720235443291,-500.0,0.00046901,120]
[331327522,1720235443300,-500.0,0.00046901,120]
[331327523,1720235443309,-500.93838877,0.00046901,120]
[331327524,1720235443318,-500.0,0.00046901,120]
[331327525,1720235443328,-503.20759541,0.00046901,120]
[331327526,1720235443337,-500.0,0.00046901,120]
[331327527,1720235443346,-502.69991011,0.00046901,120]
[331327528,1720235443356,-500.0,0.00046901,120]
[331327529,1720235443365,-500.0,0.00046901,120]
[331327530,1720235443377,-500.0,0.00046901,120]
[331327531,1720235443386,-500.0,0.00046901,120]
[331327532,1720235443407,-502.03299405,0.00046901,120]
[331327533,1720235443417,-500.0,0.00046901,120]
[331327534,1720235443427,-504.82789485,0.00046901,120]
[331327535,1720235443436,-574.1318985,0.00046901,120]
[331327536,1720235443446,-500.0,0.00046901,120]
[331327537,1720235443455,-544.60196898,0.00046901,120]
[331327538,1720235443464,-503.77535074,0.00046901,120]
[331327539,1720235443475,-500.0,0.00046901,120]
[331327540,1720235443485,-500.0,0.00046901,120]
[331327541,1720235443495,-500.0,0.00046901,120]
[331327542,1720235443505,-503.2954728,0.00046901,120]
[331327544,1720235443515,-503.30435179,0.00046901,120]
[331327546,1720235443524,-500.0,0.00046901,120]
[331327547,1720235443534,-500.0,0.00046901,120]
[331327548,1720235443543,-500.0,0.00046901,120]
[331327549,1720235443552,-500.0,0.00046901,120]
[331327550,1720235443562,-216.19982751,0.00046901,120]
[331327551,1720235443571,-500.0,0.00046901,120]
[331327552,1720235443581,-502.08107638,0.00046901,120]
[331327553,1720235443590,-756.75,0.00046901,120]
[331327554,1720235443599,-316.15429094,0.00046901,120]
[331327555,1720235443609,-336.51504459,0.00046901,120]
[331327556,1720235443621,-244.09289807,0.00046901,120]
[331327557,1720235443631,-508.20645806,0.00046901,120]
[331327558,1720235443644,-672.28,0.00046901,120]
[331327559,1720235443653,-500.0,0.00046901,120]
[331327560,1720235443663,-500.0,0.00046901,120]
[331327561,1720235443672,-500.0,0.00046901,120]
[331327562,1720235443682,-504.04486906,0.00046901,120]
[331327563,1720235443692,-503.59107688,0.00046901,120]
[331327564,1720235443701,-500.0,0.00046901,120]
[331327565,1720235443710,-500.0,0.00046901,120]
[331327566,1720235443721,-500.0,0.00046901,120]
[331327567,1720235443730,-500.0,0.00046901,120]
[331327568,1720235443739,-500.0,0.00046901,120]
[331327569,1720235443747,-500.0,0.00046901,120]
[331327570,1720235443756,-500.0,0.00046901,120]
[331327571,1720235443768,-504.85003077,0.00046901,120]
[331327572,1720235443778,-500.0,0.00046901,120]
[331327573,1720235443788,-500.0,0.00046901,120]
[331327574,1720235443798,-504.02963267,0.00046901,120]
[331327575,1720235443809,-500.0,0.00046901,120]
[331327576,1720235443818,-500.0,0.00046901,120]
[331327577,1720235443827,-500.0,0.00046901,120]
[331327578,1720235443838,-500.0,0.00046901,120]
[331327579,1720235443847,-500.0,0.00046901,120]
[331327580,1720235443857,-500.0,0.00046901,120]
[331327581,1720235443867,-500.0,0.00046901,120]
[331327582,1720235443879,-500.0,0.00046901,120]
[331327583,1720235443888,-502.91924705,0.00046901,120]
[331327584,1720235443899,-151.0,0.00046901,14]
[331327585,1720235443911,-1072.46,0.00046901,120]
[331327586,1720235443925,-183.765845,0.00046901,14]
[331327587,1720235443950,-183.765845,0.00046901,14]
[331327588,1720235443978,-500.0,0.00046901,120]
[331327589,1720235443991,-3000.0,0.00047,2]
[331327590,1720235444001,-160.0,0.000471,5]
[331327591,1720235444011,-72122.0399429,0.00047164,5]
[331327592,1720235444023,-151.0,0.00047164,14]
[331327593,1720235444033,-183.765845,0.00047164,14]
[331327594,1720235444043,-183.765845,0.00047164,14]
[331327595,1720235444052,-500.0,0.00047174,120]
[331327596,1720235444062,-24906.05,0.00047174,120]
[331327597,1720235444072,-2474.64,0.00047174,21]
[331327598,1720235444082,-4221.44,0.00047174,120]
[331327599,1720235444091,-500.0,0.00047174,120]
[331327600,1720235444102,-1310.77,0.00047174,120]
[331327601,1720235444112,-500.0,0.00047174,120]
[331327602,1720235444123,-3362.43,0.00047174,120]
[331327603,1720235444133,-500.0,0.00047175,120]
[331327604,1720235444142,-500.0,0.00047175,120]
[331327605,1720235444152,-500.0,0.00047175,120]
[331327606,1720235444162,-500.0,0.00047175,120]
[331327607,1720235444172,-500.0,0.00047175,120]
[331327608,1720235444181,-503.99099767,0.00047175,120]
[331327609,1720235444191,-500.0,0.00047175,120]
[331327610,1720235444201,-500.0,0.00047175,120]
[331327611,1720235444210,-374.41327964,0.00047175,120]
[331327612,1720235444220,-500.0,0.00047175,120]
[331327613,1720235444230,-500.0,0.00047175,120]
[331327614,1720235444239,-500.0,0.00047175,120]
[331327615,1720235444249,-503.50602079,0.00047175,120]
[331327616,1720235444258,-504.60518475,0.00047175,120]
[331327617,1720235444268,-500.0,0.00047175,120]
[331327618,1720235444278,-500.0,0.00047175,120]
[331327619,1720235444288,-500.0,0.00047175,120]
[331327620,1720235444298,-500.0,0.00047175,120]
[331327621,1720235444308,-500.0,0.00047175,120]
[331327622,1720235444317,-756.75,0.00047175,120]
[331327623,1720235444327,-672.28,0.00047175,120]
[331327624,1720235444337,-500.0,0.00047175,120]
[331327625,1720235444347,-500.0,0.00047175,120]
[331327626,1720235444356,-500.0,0.00047175,120]
[331327627,1720235444367,-500.0,0.00047175,120]
[331327628,1720235444379,-500.0,0.00047175,120]
[331327629,1720235444389,-500.0,0.00047175,120]
[331327630,1720235444398,-500.0,0.00047175,120]
[331327631,1720235444408,-500.0,0.00047175,120]
[331327632,1720235444417,-500.0,0.00047175,120]
[331327633,1720235444426,-500.0,0.00047175,120]
[331327634,1720235444435,-500.0,0.00047175,120]
[331327635,1720235444444,-500.0,0.00047175,120]
[331327636,1720235444454,-500.0,0.00047175,120]
[331327637,1720235444463,-500.0,0.00047175,120]
[331327638,1720235444471,-500.0,0.00047175,120]
[331327639,1720235444481,-332.54619462,0.00047175,120]
[331327640,1720235444490,-223.76843045,0.00047175,120]
[331327675,1720235444809,-276.23156955,0.00047175,120]
[331327676,1720235444820,-500.0,0.00047175,120]
[331327677,1720235444829,-500.0,0.00047175,120]
[331327678,1720235444839,-500.0,0.00047175,120]
[331327679,1720235444848,-1072.46,0.00047175,120]
[331327680,1720235444860,-500.0,0.00047175,120]
[331327681,1720235444869,-151.0,0.00047328,14]
[331327682,1720235444884,-183.765845,0.00047328,14]
[331327683,1720235444893,-183.765845,0.00047328,14]
[331327684,1720235444904,-30563.6455941,0.00047329,5]
[331327685,1720235444916,-8859.34999999,0.00047329,5]
[331327686,1720235446420,-0.06200692,0.00046901,14]
[331327687,1720235446728,154.65203293,0.00043834,4]
[331327707,1720235457472,171.638693,0.00021096,2]
[331327708,1720235468520,256.99442939,0.00043834,4]
[331327709,1720235474360,797.84112734,0.00042543,4]
[331327710,1720235479681,175.310833,0.00041147,2]
[331327711,1720235486909,166.666666,0.00040717,2]
[331327712,1720235488083,314.21232894,0.00043834,120]
[331327713,1720236426177,-166.666666,0.00038556,2]
[331327714,1720236426202,-191.2122889,0.00039299,3]
[331327715,1720236427148,-34.7877111,0.00039299,3]
[331327716,1720236427176,-2132.14487957,0.000393,2]
[331327717,1720236444550,-282.02541797,0.000393,2]
[331327718,1720236549121,-5063.92975328,0.000393,2]
[331327719,1720236549807,-8137.88431808,0.000393,2]
[331327720,1720236550154,-204.160178,0.00039612,2]
[331327721,1720236632938,-949.80055568,0.00046,120]
[331327835,1720236644531,-400.0,0.00046,120]
[331328184,1720237628814,-2613.66599189,0.000161,2]
[331328185,1720237636703,-1807.22781109,0.000161,2]
[331328186,1720237636731,-171.638693,0.00021096,2]
[331328187,1720237637175,-2359.0113301,0.00038448,2]
[331328188,1720237637648,-514.769837,0.00038713,2]
[331328189,1720237638126,-210.712198,0.00040003,2]
[331328190,1720237638609,-162.6391394,0.00040117,2]
[331328191,1720237639464,-412.91415057,0.00040278,7]
[331328192,1720237639487,-165.64482472,0.00040278,4]
[331328193,1720237639990,-170.51923167,0.00040278,4]
[331328194,1720237640013,-269.9215643,0.00040278,4]
[331328195,1720237640035,-735.72098943,0.00040278,4]
[331328196,1720237640214,-70.66550788,0.00040278,4]
[331328197,1720237640235,-742.75440298,0.00040278,30]
[331328198,1720237640256,-160.0,0.00042543,3]
[331328199,1720237640277,-160.0,0.00044822,4]
[331328200,1720237640297,-202.94259115,0.000459,2]
[331328201,1720237640319,-690.54182931,0.00046,120]
[331328202,1720237640341,-246.86339781,0.00046,30]
[331328203,1720237640366,-151.097141,0.00046,120]
[331328204,1720237640389,-307.1097456,0.00046027,2]
[331328205,1720237640411,-153.0,0.00046027,2]
[331328206,1720237640434,-636.21427287,0.00046412,28]
[331328207,1720237640461,-1229.71606167,0.00046504,2]
[331328214,1720237752600,-155.46811998,0.00043615,4]
[331328215,1720237753801,320.92324226,0.00043615,4]
[331328219,1720237797517,175.310833,0.00040623,2]
[331328222,1720237835204,-1855.50124184,0.00046,120]
[331328334,1720237847556,-184.84114315,0.00046,120]
[331328337,1720237847567,-153.0,0.00046027,2]
[331328339,1720237847576,-293.3096853,0.00046027,2]
[331328341,1720237847588,-293.3096853,0.00046027,2]
[331328344,1720237847598,-153.7904281,0.00046027,2]
[331328345,1720237847608,-300.2087026,0.00046027,2]
[331328346,1720237847618,-316.2472522,0.00046027,2]
[331328347,1720237847627,-155.640552,0.00046027,2]
[331328348,1720237847636,-556.68748877,0.00046475,28]
[331328349,1720237847646,-1584.98359704,0.00046484,2]
[331328350,1720237847656,-138.60238554,0.00046489,2]
[331328351,1720237847668,-1446.3812115,0.00046489,2]
[331328352,1720237847677,-1584.98359704,0.00046494,2]
[331328353,1720237847686,-1584.98359704,0.00046499,2]
[331328354,1720237847698,-1584.98359704,0.00046504,2]
[331328355,1720237847708,-23314.76433115,0.00046574,61]
[331328356,1720237847718,-960.41866289,0.00046574,120]
[331328357,1720237847728,-1032.66,0.00046574,30]
[331328358,1720237847738,-860.55,0.00046574,30]
[331328359,1720237847748,-717.13,0.00046574,30]
[331328360,1720237847758,-597.6,0.00046574,30]
[331328361,1720237847768,-498.0,0.00046574,30]
[331328362,1720237847777,-498.0,0.00046574,30]
[331328363,1720237847787,-332.0,0.00046574,30]
[331328364,1720237847796,-276.67,0.00046574,30]
[331328366,1720237847805,-230.56,0.00046574,30]
[331328367,1720237847815,-1290.73,0.00046574,3]
[331328368,1720237847824,-192.13,0.00046574,30]
[331328369,1720237847833,-500.0,0.00046575,120]
[331328371,1720237847843,-23898.47,0.00046575,120]
[331328373,1720237847852,-1270.76,0.00046575,120]
[331328375,1720237847862,-2371.53,0.00046575,21]
[331328377,1720237847871,-4045.54,0.00046575,120]
[331328379,1720237847880,-500.0,0.00046575,120]
[331328381,1720237847889,-1201.54,0.00046575,120]
[331328383,1720237847899,-2848.2,0.00046575,120]
[331328385,1720237847908,-3082.23,0.00046575,120]
[331328387,1720237847918,-507.09913262,0.00046575,120]
[331328389,1720237847928,-500.0,0.00046575,120]
[331328391,1720237847938,-500.0,0.00046575,120]
[331328393,1720237847949,-504.53924056,0.00046575,120]
[331328395,1720237847959,-501.73237805,0.00046575,120]
[331328397,1720237847969,-502.96385275,0.00046575,120]
[331328399,1720237847979,-1365.92,0.00046575,120]
[331328401,1720237847989,-500.0,0.00046583,7]
[331328403,1720237847999,-500.0,0.00046583,7]
[331328405,1720237848008,-74629.5314737,0.00046584,5]
[331328407,1720237848018,-1239.19,0.00046584,30]
[331328409,1720237848028,-500.0,0.00046593,120]
[331328411,1720237848038,-500.0,0.00046593,120]
[331328413,1720237848047,-503.79555366,0.00046593,120]
[331328415,1720237848057,-170.04902434,0.00046593,120]
[331328417,1720237848067,-500.0,0.00046593,120]
[331328419,1720237848077,-500.0,0.00046593,120]
[331328421,1720237848087,-501.51640471,0.00046593,120]
[331328425,1720237848097,-250.85437899,0.00046593,120]
[331328427,1720237848107,-500.0,0.00046593,120]
[331328430,1720237848117,-529.49957701,0.00046593,120]
[331328433,1720237848126,-500.0,0.00046593,120]
[331328437,1720237848136,-500.0,0.00046593,120]
[331328441,1720237848145,-500.0,0.00046593,120]
[331328445,1720237848154,-504.92498818,0.00046593,120]
[331328449,1720237848164,-502.5901249,0.00046593,120]
[331328453,1720237848173,-1057.41940727,0.00046593,120]
[331328456,1720237848182,-503.65043947,0.00046593,120]
[331328459,1720237848192,-177.88582175,0.00046593,20]
[331328462,1720237848201,-500.0,0.00046593,120]
[331328466,1720237848211,-552.27818424,0.00046593,120]
[331328469,1720237848220,-500.0,0.00046593,120]
[331328472,1720237848230,-500.0,0.00046593,120]
[331328475,1720237848239,-695.55,0.00046593,120]
[331328478,1720237848248,-635.86647357,0.00046593,120]
[331328480,1720237848258,-500.0,0.00046593,120]
[331328482,1720237848267,-500.0,0.00046593,120]
[331328484,1720237848277,-500.0,0.00046593,120]
[331328486,1720237848286,-500.0,0.00046593,120]
[331328488,1720237848296,-583.17,0.00046593,120]
[331328490,1720237848306,-500.0,0.00046593,120]
[331328492,1720237848316,-500.0,0.00046593,120]
[331328494,1720237848326,-500.67,0.00046593,120]
[331328496,1720237848335,-500.0,0.00046593,120]
[331328498,1720237848345,-500.0,0.00046593,120]
[331328500,1720237848354,-579.5,0.00046593,120]
[331328502,1720237848364,-500.0,0.00046593,120]
[331328504,1720237848373,-500.0,0.00046593,120]
[331328506,1720237848383,-500.0,0.00046593,120]
[331328508,1720237848392,-167.3934691,0.00046593,120]
[331328510,1720237848402,-504.78357785,0.00046593,120]
[331328512,1720237848412,-500.0,0.00046593,120]
[331328514,1720237848421,-500.0,0.00046593,120]
[331328516,1720237848438,-28681.49483552,0.00046594,5]
[331328519,1720237848451,-511.1056432,0.00046594,5]
[331328615,1720237849386,-1845.55,0.00046594,5]
[331328621,1720237849438,-1235.06,0.00046594,5]
[331328993,1720237894842,155.1958273,0.0003,4]
[331328994,1720237911833,1634.59229075,0.00043834,4]
[331328995,1720237933118,2228.50666749,0.00043834,4]
[331328996,1720237934343,45.15085684,0.00043834,4]
[331328997,1720237935671,1109.73471439,0.00043834,4]
[331328998,1720237937806,1603.27828426,0.00043834,20]
[331328999,1720237938352,1100.0897189,0.00043834,4]
[331329001,1720238852770,-171.638693,0.00021096,2]
[331329002,1720238852808,-2846.29584544,0.00035292,120]
[331329003,1720238852863,-1044.14921762,0.00037999,2]
[331329004,1720238852909,-210.7121982,0.00038078,2]
[331329005,1720238852950,-256.16735412,0.00038228,2]
[331329006,1720238946091,-3087.51331558,0.00034811,4]
[331329007,1720238946115,-2141.01034381,0.00035259,4]
[331329008,1720238946138,-315.62264588,0.00038228,2]
[331329009,1720238946159,-810.44222687,0.00038264,4]
[331329010,1720238946180,-643.98391124,0.00038499,4]
[331329011,1720238946201,-397.2008308,0.00039994,30]
[331329012,1720238946222,-2368.6112872,0.0004,30]
[331329013,1720238946242,-155.2372479,0.00041941,4]
[331329014,1720238946262,-405.97364914,0.00041941,4]
[331329015,1720238946283,-156.60359935,0.00041941,4]
[331329016,1720238946305,-155.60424435,0.00041941,4]
[331329017,1720238946326,-105.44478576,0.00043834,4]
[331329018,1720238946412,-155.28367271,0.00043834,4]
[331329019,1720238946845,-483.621999,0.00043834,30]
[331329020,1720239003705,3955.24901582,0.00043834,60]
[331329021,1720239003730,4180.58722254,0.00043834,60]
[331329022,1720239003756,1864.16376164,0.00043834,60]
[331329051,1720239041185,-153.0,0.00045205,2]
[331329052,1720239041195,-586.5524968,0.00045205,2]
[331329053,1720239041204,-154.8821934,0.00045205,2]
[331329054,1720239041213,-153.0,0.00045205,2]
[331329055,1720239041224,-586.6193706,0.00045205,2]
[331329056,1720239041233,-211.103576,0.00045205,2]
[331329057,1720239041242,-206.1408591,0.00045205,2]
[331329058,1720239041252,-153.0,0.00045205,2]
[331329059,1720239041261,-209.7158979,0.00045205,2]
[331329060,1720239041270,-206.1408591,0.00045205,2]
[331329061,1720239041280,-206.1814845,0.00045205,2]
[331329062,1720239041289,-153.4145384,0.00045205,2]
[331329063,1720239041298,-293.3880832,0.00045205,2]
[331329064,1720239041308,-190.9281156,0.000459,2]
[331329065,1720239041317,-1494.91074151,0.00046,120]
[331329066,1720239041326,-153.0,0.00046027,2]
[331329067,1720239041336,-153.0,0.00046027,2]
[331329068,1720239041345,-153.0,0.00046027,2]
[331329069,1720239041355,-153.0,0.00046027,2]
[331329070,1720239041363,-357.0696032,0.00046027,2]
[331329071,1720239041372,-206.1408591,0.00046027,2]
[331329072,1720239041382,-206.1408591,0.00046027,2]
[331329073,1720239041391,-206.1408591,0.00046027,2]
[331329074,1720239041400,-206.1408591,0.00046027,2]
[331329075,1720239041411,-206.1408591,0.00046027,2]
[331329076,1720239041421,-206.1408591,0.00046027,2]
[331329077,1720239041434,-206.1408591,0.00046027,2]
[331329078,1720239041444,-206.1408591,0.00046027,2]
[331329079,1720239041453,-206.1408591,0.00046027,2]
[331329080,1720239041462,-487.1015527,0.00046375,28]
[331329081,1720239041472,-20000.0,0.000464,120]
[331329082,1720239041481,-1240.26640054,0.00046455,2]